lending/lending_fUSD_20241120
["ID","MTS","AMOUNT","RATE_DAILY","PERIOD"]
[342758812,1732115432927,-201.6,0.00034572,30]
[342758814,1732115432937,-150.0,0.00034572,2]
[342758816,1732115432946,-150.0,0.00034572,2]
[342758818,1732115432955,-200.0,0.00034572,2]
[342758820,1732115432964,-15983.73051689,0.00034572,2]
[342758822,1732115432973,-196.0,0.00034572,30]
[342758824,1732115432982,-196.0,0.00034572,30]
[342758826,1732115432991,-798.26171457,0.00034572,120]
[342758828,1732115433000,-319.12897131,0.00034572,120]
[342758830,1732115433009,-150.0,0.00034607,2]
[342758832,1732115433018,-1790.4075,0.00034797,2]
[342758834,1732115433028,-911.756,0.00034797,2]
[342758836,1732115433038,-5262.8591,0.00034797,2]
[342758838,1732115433047,-500.0,0.00034873,5]
[342758840,1732115433056,-20700.66257696,0.00034897,2]
[342758846,1732115433108,-131735.67062304,0.00034897,2]
[342758848,1732115433117,-151.0,0.00035014,120]
[342758850,1732115433127,-641.56170188,0.00035421,5]
[342758852,1732115433138,-150.0,0.00035472,2]
[342758854,1732115433154,-197.09,0.00035594,2]
[342758856,1732115433163,-160.47,0.00035616,2]
[342758858,1732115433173,-1500.0,0.00035616,120]
[342758860,1732115433183,-1000.0,0.00036264,2]
[342758862,1732115433193,-500.0,0.00036328,120]
[342758864,1732115433202,-150.0,0.00036337,2]
[342758866,1732115433212,-250.0,0.00037,2]
[342758868,1732115433222,-250.0,0.00037,2]
[342758870,1732115433230,-150.0,0.00037203,2]
[342758872,1732115433240,-197.09,0.00037857,2]
[342758874,1732115433250,-798.26171457,0.00038,120]
[342758876,1732115433259,-319.12897131,0.00038,120]
[342758878,1732115433272,-150.0,0.00038068,2]
[342758880,1732115433283,-150.0,0.00038933,2]
[342758882,1732115433293,-300.0,0.00039,2]
[342758884,1732115433302,-300.0,0.00039,2]
[342758885,1732115433317,-151.0,0.00039092,3]
[342758888,1732115433331,-1000.0,0.00039561,2]
[342758890,1732115433345,-436.0,0.00039772,5]
[342758891,1732115433355,-150.0,0.00039798,2]
[342758894,1732115433366,-798.26171457,0.0004,120]
[342758896,1732115433376,-319.12897131,0.0004,120]
[342758897,1732115433386,-151.0,0.00040027,120]
[342758899,1732115433397,-197.09,0.00040121,2]
[342758901,1732115433407,-8500.0,0.00040487,11]
[342758903,1732115433417,-8500.0,0.00040496,11]
[342758905,1732115433428,-8500.0,0.00040504,11]
[342758907,1732115433437,-150.0,0.00040663,2]
[342758909,1732115433447,-3328.54690487,0.00040828,11]
[342758911,1732115433458,-560.79,0.00040952,2]
[342758912,1732115433469,-350.0,0.00041,2]
[342758914,1732115433479,-350.0,0.00041,2]
[342758916,1732115433489,-157.0,0.00041096,2]
[342758918,1732115433500,-197.67796363,0.000411,2]
[342758920,1732115433510,-500.0,0.000411,2]
[342758922,1732115433520,-150.0,0.00041528,2]
[342758924,1732115433530,-156.48,0.000417,31]
[342758926,1732115433540,-156.48,0.000417,31]
[342758928,1732115433550,-197.09,0.00042385,2]
[342758930,1732115433559,-150.0,0.00042394,2]
[342758932,1732115433569,-671.7829569,0.000429,2]
[342758933,1732115433579,-442.0,0.00042944,60]
[342758936,1732115433593,-289983.74780884,0.00043,30]
[342758937,1732115433603,-1596.52342914,0.00043,120]
[342758939,1732115433614,-400.0,0.00043,2]
[342758941,1732115433624,-638.25794261,0.00043,120]
[342758943,1732115433635,-400.0,0.00043,2]
[342758946,1732115433645,-187.15,0.00043014,120]
[342758947,1732115433656,-150.0,0.00043259,2]
[342758949,1732115433666,-304.205,0.0004346,60]
[342758951,1732115433676,-1012.48,0.00043481,6]
[342758953,1732115433686,-487.8014132,0.000438,120]
[342758955,1732115433696,-943.55680406,0.000439,120]
[342758957,1732115433706,-150.0,0.00044,57]
[342758959,1732115433717,-150.0,0.00044124,2]
[342758961,1732115433727,-2241.14,0.00044349,6]
[342758963,1732115433737,-61211.12,0.00044349,6]
[342758965,1732115433747,-4219.49,0.00044349,6]
[342758967,1732115433756,-3069.71,0.00044349,6]
[342758969,1732115433766,-197.09,0.00044649,2]
[342758971,1732115433775,-203.7158,0.00044888,30]
[342758973,1732115433785,-400.0,0.000449,16]
[342758975,1732115433795,-150.0,0.00044989,2]
[342758977,1732115433804,-50000.0,0.00045,25]
[342758979,1732115433814,-50000.0,0.00045,35]
[342758981,1732115433827,-50000.0,0.00045,45]
[342758983,1732115433840,-800.0,0.00045,120]
[342758985,1732115433851,-450.0,0.00045,2]
[342758987,1732115433861,-450.0,0.00045,2]
[342758989,1732115433871,-151.0,0.00045041,120]
[342758991,1732115433881,-61364.06,0.0004533,6]
[342758993,1732115433892,-304.171,0.0004563,120]
[342758995,1732115433902,-2126.53377447,0.0004567,7]
[342758997,1732115433912,-421.93189667,0.00045734,120]
[342758999,1732115433922,-160.47,0.00045753,2]
[342759001,1732115433932,-421.93189667,0.0004582,120]
[342759003,1732115433942,-150.0,0.00045854,2]
[342759005,1732115433952,-1083.39959556,0.000459,23]
[342759007,1732115433961,-50000.0,0.00046,26]
[342759009,1732115433971,-50000.0,0.00046,36]
[342759011,1732115433984,-13754.21062502,0.00046,46]
[342759013,1732115433996,-500.0,0.00046,46]
[342759424,1732115438468,-1197.712,0.00013911,2]
[342759426,1732115438478,-1093.0,0.00016911,2]
[342759428,1732115438487,-1093.0,0.00019911,2]
[342759430,1732115438496,-1093.0,0.00022911,2]
[342759432,1732115438505,-150.0,0.00041,2]
[342759434,1732115438514,-500.0,0.00041,2]
[342759436,1732115438523,-1107.55,0.00042944,60]
[342759438,1732115438533,-500.0,0.00042999,31]
[342759440,1732115438543,-630.6004629,0.00042999,31]
[342759442,1732115438553,-500.0,0.00042999,31]
[342759444,1732115438563,-500.0,0.00042999,31]
[342759447,1732115438583,-500.0,0.00042999,31]
[342759449,1732115438598,-500.0,0.00042999,31]
[342759451,1732115438608,-422.58170006,0.00042999,31]
[342759453,1732115438619,-528.06774366,0.00042999,31]
[342759455,1732115438629,-500.0,0.00042999,31]
[342759457,1732115438639,-500.0,0.00042999,31]
[342759459,1732115438650,-500.0,0.00042999,31]
[342759461,1732115438661,-500.0,0.00042999,31]
[342759463,1732115438670,-500.0,0.00042999,31]
[342759465,1732115438680,-500.0,0.00042999,31]
[342759467,1732115438690,-500.0,0.00042999,31]
[342759469,1732115438700,-500.0,0.00042999,31]
[342759471,1732115438709,-500.0,0.00042999,31]
[342759473,1732115438719,-500.0,0.00042999,31]
[342759476,1732115438729,-500.0,0.00042999,31]
[342759477,1732115438739,-500.0,0.00042999,31]
[342759479,1732115438749,-500.0,0.00042999,31]
[342759482,1732115438760,-500.0,0.00042999,31]
[342759484,1732115438771,-500.0,0.00042999,31]
[342759487,1732115438781,-500.0,0.00042999,31]
[342759490,1732115438791,-500.0,0.00042999,31]
[342759494,1732115438800,-500.0,0.00042999,31]
[342759498,1732115438810,-500.0,0.00042999,31]
[342759501,1732115438820,-500.0,0.00042999,31]
[342759503,1732115438830,-500.0,0.00042999,31]
[342759505,1732115438839,-500.0,0.00042999,31]
[342759507,1732115438853,-500.0,0.00042999,31]
[342759509,1732115438863,-500.0,0.00042999,31]
[342759511,1732115438873,-500.0,0.00042999,31]
[342759513,1732115438883,-500.0,0.00042999,31]
[342759515,1732115438893,-500.0,0.00042999,31]
[342759517,1732115438903,-500.0,0.00042999,31]
[342759519,1732115438913,-500.0,0.00042999,31]
[342759521,1732115438923,-500.0,0.00042999,31]
[342759523,1732115438933,-500.0,0.00042999,31]
[342759526,1732115438943,-500.0,0.00042999,31]
[342759528,1732115438953,-500.0,0.00042999,31]
[342759530,1732115438962,-500.0,0.00042999,31]
[342759531,1732115438972,-500.0,0.00042999,31]
[342759533,1732115438982,-500.0,0.00042999,31]
[342759535,1732115438992,-567.22963981,0.00042999,31]
[342759537,1732115439001,-500.0,0.00042999,31]
[342759539,1732115439011,-500.0,0.00042999,31]
[342759541,1732115439021,-500.0,0.00042999,31]
[342759543,1732115439031,-500.0,0.00042999,31]
[342759545,1732115439041,-500.0,0.00042999,31]
[342759547,1732115439050,-500.0,0.00042999,31]
[342759549,1732115439060,-500.0,0.00042999,31]
[342759551,1732115439070,-500.0,0.00042999,31]
[342759553,1732115439080,-500.0,0.00042999,31]
[342759555,1732115439090,-500.0,0.00042999,31]
[342759557,1732115439103,-500.0,0.00042999,31]
[342759560,1732115439112,-500.0,0.00042999,31]
[342759562,1732115439123,-500.0,0.00042999,31]
[342759564,1732115439133,-500.0,0.00042999,31]
[342759566,1732115439143,-500.0,0.00042999,31]
[342759568,1732115439152,-500.0,0.00042999,31]
[342759570,1732115439162,-500.0,0.00042999,31]
[342759572,1732115439172,-500.0,0.00042999,31]
[342759574,1732115439182,-500.0,0.00042999,31]
[342759576,1732115439192,-500.0,0.00042999,31]
[342759578,1732115439203,-500.0,0.00042999,31]
[342759580,1732115439213,-500.0,0.00042999,31]
[342759582,1732115439223,-500.0,0.00042999,31]
[342759584,1732115439233,-312.94231967,0.00042999,31]
[342759586,1732115439243,-500.0,0.00042999,31]
[342759588,1732115439253,-500.0,0.00042999,31]
[342759590,1732115439262,-35745.78937498,0.00046,46]
[342759592,1732115439272,-1995.65428643,0.00046,120]
[342759594,1732115439282,-797.82242827,0.00046,120]
[342759596,1732115439291,-62972.19,0.00046215,6]
[342759598,1732115439305,-421.93189667,0.00046255,120]
[342759600,1732115439315,-421.93189667,0.00046403,120]
[342759602,1732115439330,-1500.0,0.00046515,7]
[342759604,1732115439339,-4000.0,0.00046575,30]
[342759606,1732115439352,-500.0,0.000466,2]
[342759608,1732115439362,-421.93189667,0.00046606,120]
[342759610,1732115439372,-150.0,0.0004672,2]
[342759612,1732115439382,-197.09,0.00046913,2]
[342759614,1732115439392,-50000.0,0.00047,27]
[342759616,1732115439404,-50000.0,0.00047,37]
[342759618,1732115439414,-50000.0,0.00047,47]
[342759620,1732115439424,-250.0274167,0.00047,60]
[342759622,1732115439434,-500.0,0.00047,2]
[342759624,1732115439443,-500.0,0.00047,2]
[342759626,1732115439453,-1141.66,0.00047074,6]
[342759628,1732115439462,-421.93189667,0.00047099,120]
[342759630,1732115439472,-421.93189667,0.00047205,120]
[342759632,1732115439481,-560.79,0.00047354,2]
[342759634,1732115439492,-2000.0,0.00047374,75]
[342759636,1732115439501,-1083.39959555,0.000474,25]
[342759638,1732115439510,-421.93189667,0.000474,120]
[342759640,1732115439520,-150.0,0.00047585,2]
[342759642,1732115439529,-49587.03,0.000477,6]
[342759644,1732115439538,-304.17,0.000478,120]
[342759646,1732115439548,-421.93189667,0.00047807,120]
[342759648,1732115439558,-900.0,0.000479,17]
[342759650,1732115439568,-421.93189667,0.00047947,120]
[342759652,1732115439579,-50000.0,0.00048,28]
[342759654,1732115439588,-50000.0,0.00048,38]
[342759657,1732115439601,-50000.0,0.00048,48]
[342759659,1732115439611,-1995.65428643,0.00048,120]
[342759661,1732115439621,-1200.0,0.00048,60]
[342759663,1732115439631,-1067.4096051,0.00048,60]
[342759665,1732115439641,-1500.0,0.00048,30]
[342759667,1732115439650,-1500.0,0.00048,30]
[342759669,1732115439660,-1500.0,0.00048,30]
[342759671,1732115439670,-1500.0,0.00048,30]
[342759672,1732115439680,-1500.0,0.00048,2]
[342759675,1732115439690,-1445.3,0.00048,2]
[342759676,1732115439700,-1500.0,0.00048,2]
[342759678,1732115439710,-1500.0,0.00048,2]
[342759680,1732115439721,-500.0,0.00048,2]
[342759682,1732115439731,-797.82242826,0.00048,120]
[342759684,1732115439741,-421.93189667,0.00048321,120]
[342759686,1732115439752,-150.0,0.0004845,2]
[342759688,1732115439762,-150.0,0.00048475,7]
[342759690,1732115439773,-150.0,0.00048541,7]
[342759692,1732115439783,-421.93189667,0.00048574,120]
[342759694,1732115439792,-150.0,0.000487,7]
[342759696,1732115439803,-150.0,0.00048736,7]
[342759698,1732115439813,-150.0,0.00048748,7]
[342759700,1732115439823,-150.0,0.00048764,7]
[342759702,1732115439833,-150.0,0.00048766,7]
[342759704,1732115439843,-150.0,0.00048768,7]
[342759706,1732115439855,-150.0,0.00048772,7]
[342759708,1732115439865,-2000.0,0.000488,30]
[342759710,1732115439875,-2000.0,0.000488,14]
[342759712,1732115439885,-2000.0,0.000488,7]
[342759714,1732115439897,-1363.0,0.000488,2]
[342759716,1732115439907,-150.0,0.00048816,7]
[342759718,1732115439917,-3000.0,0.0004882,65]
[342759721,1732115439929,-150.0,0.00048822,7]
[342759723,1732115439940,-150.0,0.00048823,7]
[342759725,1732115439951,-150.0,0.0004883,7]
[342759727,1732115439962,-150.0,0.00048844,7]
[342759729,1732115439972,-150.0,0.00048857,7]
[342759731,1732115439983,-150.0,0.00048862,7]
[342759733,1732115439993,-151.0,0.00048865,8]
[342759735,1732115440003,-150.0,0.00048885,7]
[342759737,1732115440014,-1400.0,0.000489,17]
[342759739,1732115440025,-1083.39959555,0.000489,27]
[342759741,1732115440035,-150.0,0.00048903,7]
[342759743,1732115440045,-150.0,0.00048926,7]
[342759745,1732115440055,-150.0,0.00048927,7]
[342759747,1732115440064,-150.0,0.00048932,7]
[342759749,1732115440074,-150.0,0.00048941,7]
[342759751,1732115440084,-150.0,0.00048942,7]
[342759753,1732115440097,-150.0,0.00048977,7]
[342759755,1732115440108,-150.0,0.00048996,7]
[342759757,1732115440119,-50000.0,0.00049,29]
[342759759,1732115440128,-50000.0,0.00049,39]
[342759761,1732115440139,-50000.0,0.00049,49]
[342759763,1732115440149,-2000.0,0.00049,2]
[342759765,1732115440159,-2000.0,0.00049,14]
[342759767,1732115440169,-2000.0,0.00049,30]
[342759769,1732115440178,-2000.0,0.00049,7]
[342759771,1732115440188,-98125.94737009,0.00049,33]
[342759773,1732115440198,-64901.82996277,0.00049,5]
[342759775,1732115440208,-550.0,0.00049,2]
[342759777,1732115440218,-550.0,0.00049,2]
[342759779,1732115440228,-150.0,0.00049002,7]
[342759781,1732115440237,-421.93189667,0.00049019,120]
[342759783,1732115440246,-768.099,0.00049022,85]
[342759785,1732115440256,-150.0,0.0004905,7]
[342759787,1732115440265,-150.0,0.00049079,7]
[342759789,1732115440275,-150.0,0.00049088,7]
[342759791,1732115440286,-163204.55191363,0.000491,120]
[342759793,1732115440296,-421.93189676,0.000491,120]
[342759795,1732115440306,-150.0,0.00049107,7]
[342759797,1732115440321,-150.0,0.00049124,7]
[342759799,1732115440332,-150.0,0.00049158,7]
[342759801,1732115440342,-150.0,0.00049172,7]
[342759803,1732115440356,-197.09,0.00049177,2]
[342759805,1732115440366,-150.0,0.00049185,7]
[342759807,1732115440377,-150.0,0.00049204,7]
[342759810,1732115440387,-150.0,0.00049212,7]
[342759811,1732115440398,-150.0,0.00049216,7]
[342759814,1732115440410,-150.0,0.00049217,7]
[342759816,1732115440420,-150.0,0.00049222,7]
[342759818,1732115440430,-150.0,0.00049234,7]
[342759820,1732115440440,-150.0,0.00049237,7]
[342759822,1732115440451,-150.0,0.0004924,7]
[342759824,1732115440459,-150.0,0.0004924,7]
[342759825,1732115440469,-150.0,0.0004924,7]
[342759827,1732115440479,-150.0,0.00049251,7]
[342759829,1732115440489,-888.1554,0.00049253,2]
[342759831,1732115440498,-150.0,0.00049254,7]
[342759833,1732115440508,-150.0,0.00049258,7]
[342759835,1732115440517,-150.0,0.0004926,7]
[342759837,1732115440527,-150.0,0.00049264,7]
[342759839,1732115440536,-150.0,0.00049275,7]
[342759841,1732115440546,-150.0,0.00049286,7]
[342759843,1732115440556,-150.0,0.00049292,7]
[342759846,1732115440566,-150.0,0.00049293,7]
[342759847,1732115440576,-150.0,0.00049296,7]
[342759849,1732115440586,-150.0,0.00049297,7]
[342759851,1732115440598,-150.0,0.000493,120]
[342759854,1732115440608,-150.0,0.000493,120]
[342759856,1732115440617,-196.0,0.000493,37]
[342759857,1732115440626,-150.0,0.000493,7]
[342759860,1732115440636,-150.0,0.000493,7]
[342759862,1732115440646,-150.0,0.00049301,7]
[342759864,1732115440656,-150.0,0.00049302,7]
[342759866,1732115440665,-150.0,0.00049304,7]
[342759867,1732115440674,-150.0,0.00049306,7]
[342759870,1732115440684,-193.26217487,0.00049314,2]
[342759872,1732115440693,-1000.0,0.00049315,2]
[342759874,1732115440703,-500.0,0.00049315,120]
[342759876,1732115440713,-500.0,0.00049315,120]
[342759878,1732115440723,-500.0,0.00049315,120]
[342759879,1732115440733,-500.0,0.00049315,120]
[342759882,1732115440742,-500.0,0.00049315,120]
[342759883,1732115440752,-500.0,0.00049315,120]
[342759885,1732115440761,-500.0,0.00049315,120]
[342759887,1732115440770,-500.0,0.00049315,120]
[342759889,1732115440780,-500.0,0.00049315,120]
[342759891,1732115440790,-500.0,0.00049315,120]
[342759893,1732115440799,-500.0,0.00049315,120]
[342759895,1732115440808,-500.0,0.00049315,120]
[342759897,1732115440817,-500.0,0.00049315,120]
[342759899,1732115440827,-500.0,0.00049315,120]
[342759901,1732115440837,-500.0,0.00049315,120]
[342759903,1732115440848,-500.0,0.00049315,120]
[342759905,1732115440857,-500.0,0.00049315,120]
[342759907,1732115440866,-500.0,0.00049315,120]
[342759909,1732115440876,-500.0,0.00049315,120]
[342759911,1732115440885,-500.0,0.00049315,120]
[342759913,1732115440895,-500.0,0.00049315,120]
[342759915,1732115440904,-500.0,0.00049315,120]
[342759917,1732115440914,-500.0,0.00049315,120]
[342759919,1732115440924,-500.0,0.00049315,120]
[342759921,1732115440933,-500.0,0.00049315,120]
[342759923,1732115440944,-500.0,0.00049315,120]
[342759925,1732115440953,-500.0,0.00049315,120]
[342759927,1732115440963,-500.0,0.00049315,120]
[342759929,1732115440973,-500.0,0.00049315,120]
[342759931,1732115440982,-500.0,0.00049315,120]
[342759933,1732115440991,-500.0,0.00049315,120]
[342759935,1732115441001,-500.0,0.00049315,120]
[342759937,1732115441011,-500.0,0.00049315,120]
[342759939,1732115441020,-500.0,0.00049315,120]
[342759940,1732115441029,-500.0,0.00049315,120]
[342759942,1732115441039,-500.0,0.00049315,120]
[342759944,1732115441048,-500.0,0.00049315,120]
[342759946,1732115441058,-500.0,0.00049315,120]
[342759949,1732115441067,-500.0,0.00049315,120]
[342759950,1732115441077,-500.0,0.00049315,120]
[342759952,1732115441087,-500.0,0.00049315,120]
[342759955,1732115441099,-500.0,0.00049315,120]
[342759956,1732115441109,-500.0,0.00049315,120]
[342759958,1732115441124,-500.0,0.00049315,120]
[342759961,1732115441134,-500.0,0.00049315,120]
[342759962,1732115441143,-500.0,0.00049315,120]
[342759965,1732115441154,-500.0,0.00049315,120]
[342759967,1732115441164,-500.0,0.00049315,120]
[342759968,1732115441173,-500.0,0.00049315,120]
[342759969,1732115441184,-500.0,0.00049315,120]
[342759970,1732115441193,-500.0,0.00049315,120]
[342759971,1732115441204,-500.0,0.00049315,120]
[342759972,1732115441214,-500.0,0.00049315,120]
[342759973,1732115441223,-500.0,0.00049315,120]
[342759974,1732115441233,-500.0,0.00049315,120]
[342759975,1732115441244,-500.0,0.00049315,120]
[342759976,1732115441254,-500.0,0.00049315,120]
[342759977,1732115441263,-500.0,0.00049315,120]
[342759979,1732115441272,-500.0,0.00049315,120]
[342759981,1732115441281,-500.0,0.00049315,120]
[342759983,1732115441291,-500.0,0.00049315,120]
[342759985,1732115441300,-500.0,0.00049315,120]
[342759986,1732115441309,-500.0,0.00049315,120]
[342759988,1732115441319,-500.0,0.00049315,120]
[342759990,1732115441332,-500.0,0.00049315,120]
[342759993,1732115441342,-500.0,0.00049315,120]
[342759994,1732115441356,-500.0,0.00049315,120]
[342759996,1732115441367,-500.0,0.00049315,120]
[342759998,1732115441376,-500.0,0.00049315,120]
[342760000,1732115441386,-500.0,0.00049315,120]
[342760002,1732115441396,-500.0,0.00049315,120]
[342760005,1732115441408,-500.0,0.00049315,120]
[342760007,1732115441418,-500.0,0.00049315,120]
[342760009,1732115441429,-500.0,0.00049315,120]
[342760010,1732115441438,-500.0,0.00049315,120]
[342760012,1732115441448,-500.0,0.00049315,120]
[342760014,1732115441457,-500.0,0.00049315,120]
[342760016,1732115441467,-500.0,0.00049315,120]
[342760018,1732115441477,-500.0,0.00049315,120]
[342760020,1732115441487,-500.0,0.00049315,120]
[342760022,1732115441497,-500.0,0.00049315,120]
[342760024,1732115441507,-500.0,0.00049315,120]
[342760026,1732115441516,-500.0,0.00049315,120]
[342760028,1732115441526,-500.0,0.00049315,120]
[342760030,1732115441535,-500.0,0.00049315,120]
[342760032,1732115441544,-500.0,0.00049315,120]
[342760034,1732115441554,-500.0,0.00049315,120]
[342760036,1732115441563,-500.0,0.00049315,120]
[342760038,1732115441574,-500.0,0.00049315,120]
[342760040,1732115441582,-500.0,0.00049315,120]
[342760042,1732115441591,-500.0,0.00049315,120]
[342760044,1732115441603,-500.0,0.00049315,120]
[342760046,1732115441612,-500.0,0.00049315,120]
[342760048,1732115441621,-500.0,0.00049315,120]
[342760050,1732115441630,-150.0,0.00049315,2]
[342760052,1732115441639,-150.0,0.00049317,7]
[342760054,1732115441649,-150.0,0.00049318,7]
[342760056,1732115441659,-150.0,0.00049318,14]
[342760058,1732115441669,-150.0,0.00049325,7]
[342760060,1732115441678,-150.0,0.00049331,7]
[342760062,1732115441688,-150.0,0.00049335,7]
[342760064,1732115441698,-150.0,0.00049339,7]
[342760066,1732115441708,-150.0,0.00049351,7]
[342760068,1732115441718,-150.0,0.00049352,7]
[342760070,1732115441727,-150.0,0.00049352,7]
[342760072,1732115441736,-150.0,0.00049356,7]
[342760074,1732115441746,-5800.0,0.00049358,14]
[342760076,1732115441756,-150.0,0.00049358,7]
[342760078,1732115441766,-150.0,0.00049359,7]
[342760080,1732115441775,-150.0,0.00049365,7]
[342760082,1732115441786,-5800.0,0.00049366,14]
[342760084,1732115441796,-150.0,0.00049366,7]
[342760086,1732115441806,-150.0,0.00049374,7]
[342760088,1732115441815,-5800.0,0.00049375,14]
[342760090,1732115441825,-150.0,0.00049378,7]
[342760092,1732115441835,-150.0,0.0004938,7]
[342760094,1732115441844,-150.0,0.00049381,7]
[342760096,1732115441856,-150.0,0.00049382,7]
[342760098,1732115441865,-5800.0,0.00049383,14]
[342760100,1732115441875,-150.0,0.00049384,7]
[342760102,1732115441885,-150.0,0.00049386,7]
[342760104,1732115441895,-5800.0,0.00049391,14]
[342760106,1732115441905,-150.0,0.00049396,7]
[342760108,1732115441915,-150.0,0.00049398,7]
[342760111,1732115441925,-150.0,0.00049398,7]
[342760112,1732115441935,-5800.0,0.000494,14]
[342760114,1732115441946,-150.0,0.00049405,7]
[342760116,1732115441956,-150.0,0.00049409,7]
[342760118,1732115441965,-150.0,0.00049412,7]
[342760120,1732115441975,-150.0,0.00049421,7]
[342760122,1732115441986,-150.0,0.00049428,7]
[342760124,1732115441996,-150.0,0.00049429,7]
[342760126,1732115442006,-150.0,0.0004943,7]
[342760128,1732115442015,-150.0,0.00049436,7]
[342760131,1732115442025,-150.0,0.00049443,7]
[342760132,1732115442034,-150.0,0.00049448,7]
[342760134,1732115442044,-150.0,0.00049448,7]
[342760136,1732115442053,-150.0,0.00049453,7]
[342760138,1732115442063,-150.0,0.00049454,7]
[342760140,1732115442072,-150.0,0.00049458,7]
[342760143,1732115442082,-150.0,0.00049458,7]
[342760145,1732115442091,-2000.0,0.00049494,90]
[342760146,1732115442106,-416.0,0.00049534,120]
[342760149,1732115442116,-46152.32235041,0.00049559,61]
[342760150,1732115442126,-483791.28364499,0.00049562,120]
[342760152,1732115442136,-2000.0,0.00049562,7]
[342760154,1732115442146,-200.0,0.00049562,7]
[342760157,1732115442156,-200.0,0.00049562,7]
[342760159,1732115442166,-781.33173505,0.00049562,120]
[342760161,1732115442176,-500.0,0.00049562,120]
[342760162,1732115442185,-500.0,0.00049562,120]
[342760164,1732115442195,-500.0,0.00049562,120]
[342760166,1732115442204,-500.0,0.00049562,120]
[342760168,1732115442214,-500.0,0.00049562,120]
[342760170,1732115442224,-500.0,0.00049562,120]
[342760172,1732115442233,-500.0,0.00049562,120]
[342760174,1732115442243,-704.5247671,0.00049578,2]
[342760176,1732115442253,-776.90084618,0.00049578,2]
[342760178,1732115442263,-417.7136877,0.00049578,2]
[342760180,1732115442272,-207.0833131,0.00049612,2]
[342760182,1732115442282,-36348.12858115,0.0004968,120]
[342760184,1732115442291,-220.0,0.0004978,2]
[342760186,1732115442301,-11765.16757945,0.000498,120]
[342760188,1732115442311,-113776.87837852,0.000498,120]
[342760190,1732115442325,-28441.79083188,0.000498,30]
[342760192,1732115442334,-1201.79118521,0.000498,120]
[342760194,1732115442344,-200000.90059804,0.0004988,30]
[342760196,1732115442361,-20000.0,0.000499,2]
[342760198,1732115442372,-249773.68739654,0.000499,120]
[342760201,1732115442393,-3936.61582778,0.000499,120]
[342760204,1732115442415,-1289.69677568,0.000499,120]
[342760206,1732115442426,-156.48,0.000499,48]
[342760208,1732115442436,-156.48,0.000499,48]
[342760210,1732115442445,-1900.0,0.000499,18]
[342760212,1732115442455,-304.185,0.0004997,120]
[342760214,1732115442464,-10000.0,0.00049972,120]
[342760216,1732115442474,-243.37797672,0.0004999,120]
[342760218,1732115442485,-243.43208259,0.00049999,120]
[342760220,1732115442495,-500.0,0.00049999,120]
[342760222,1732115442505,-227.27491309,0.00049999,120]